[Event "3rd FIDE WCCC Blitz G08 2019"]
[Site "Minsk"]
[Date "2019.08.18"]
[Round "2.6"]
[White "Trishkina, Evgeniya"]
[Black "Olkhovik, Anna"]
[Result "1-0"]
[ECO "B18"]
[WhiteElo "1328"]
[BlackElo "1095"]
[Annotator "NA"]
[PlyCount "70"]
[EventDate "2019.08.18"]
[EventType "swiss"]
[EventCountry "BLR"]
[SourceTitle "playchess.com"]
[Source "ChessBase"]
[SourceQuality "1"]
[TimeControl "300+2"]

1. e4 {[%emt 0:00:00]} c6 {[%emt 0:00:00]} 2. d4 {[%emt 0:00:00]} d5 {[%emt 0:00:00]} 3. Nc3 {[%emt 0:00:02]} dxe4 {[%emt 0:00:02]} 4. Nxe4 {[%emt 0:00:02]} Bf5 {[%emt 0:00:02]} 5. Bd3 {[%emt 0:00:08]} Qxd4 {[%emt 0:00:21]} 6. Nf3 {[%emt 0:00:35]} Qd7 {[%emt 0:00:15]} 7. Bf4 {[%emt 0:00:04]} f6 {[%emt 0:00:25]} 8. O-O {[%emt 0:00:13]} e5 {[%emt 0:00:02]} 9. Be3 {[%emt 0:00:02]} Bxe4 {[%emt 0:00:12]} 10. Bxe4 {[%emt 0:00:03]} Qxd1 {[%emt 0:00:04]} 11. Raxd1 {[%emt 0:00:01]} Na6 {[%emt 0:00:10]} 12. Rfe1 {[%emt 0:00:34]} Be7 {[%emt 0:00:13]} 13. Nd2 {[%emt 0:00:44]} Nh6 {[%emt 0:00:12]} 14. Bxh6 {[%emt 0:00:02]} gxh6 {[%emt 0:00:02]} 15. Nc4 {[%emt 0:00:02]} O-O {[%emt 0:00:16]} 16. Rd7 {[%emt 0:00:13]} f5 {[%emt 0:00:15]} 17. Rxe7 {[%emt 0:00:28]} fxe4 {[%emt 0:00:03]} 18. Rxe5 {[%emt 0:00:04]} b5 {[%emt 0:00:08]} 19. Nd6 {[%emt 0:00:17]} Rfd8 {[%emt 0:00:16]} 20. Nxe4 {[%emt 0:00:02]} Nb4 {[%emt 0:00:15]} 21. Nf6+ {[%emt 0:00:24]} Kg7 {[%emt 0:00:09]} 22. Ne8+ {[%emt 0:00:01]} Kf8 {[%emt 0:00:13]} 23. Nc7 {[%emt 0:00:10]} Nxc2 {[%emt 0:00:28]} 24. Ne6+ {[%emt 0:00:10]} Kf7 {[%emt 0:00:01]} 25. Nxd8+ {[%emt 0:00:01]} Rxd8 {[%emt 0:00:06]} 26. Rc1 {[%emt 0:00:05]} a5 {[%emt 0:00:11]} 27. h3 {[%emt 0:00:05]} Kf6 {[%emt 0:00:04]} 28. Rc5 {[%emt 0:00:04]} Nb4 {[%emt 0:00:20]} 29. a3 {[%emt 0:00:01]} Nd3 {[%emt 0:00:09]} 30. Rxc6+ {[%emt 0:00:01]} Ke5 {[%emt 0:00:04]} 31. Rd1 {[%emt 0:00:01]} h5 {[%emt 0:00:17]} 32. Rc3 {[%emt 0:00:06]} Ke4 {[%emt 0:00:02]} 33. Kf1 {[%emt 0:00:04]} b4 {[%emt 0:00:03]} 34. Rb3 {[%emt 0:00:02]} h6 {[%emt 0:00:42]} 35. Ke2 {[%emt 0:00:01]} Kd5 1-0

[Event "3rd FIDE WCCC Blitz G08 2019"]
[Site "Minsk"]
[Date "2019.08.18"]
[Round "3.1"]
[White "Tong, Thai Hoang An"]
[Black "Frolova, Umila"]
[Result "*"]
[ECO "E81"]
[WhiteElo "1208"]
[BlackElo "1252"]
[Annotator "NA"]
[PlyCount "38"]
[EventDate "2019.08.18"]
[EventType "swiss"]
[EventCountry "BLR"]
[SourceTitle "playchess.com"]
[Source "ChessBase"]
[SourceQuality "1"]
[TimeControl "300+2"]

1. e4 {[%emt 0:00:01]} g6 {[%emt 0:00:00]} 2. d4 {[%emt 0:00:02]} Bg7 {[%emt 0:00:00]} 3. c4 {[%emt 0:00:02]} d6 {[%emt 0:00:00]} 4. Nc3 {[%emt 0:00:04]} Nf6 {[%emt 0:00:01]} 5. f3 {[%emt 0:00:02]} O-O {[%emt 0:00:04]} 6. Bg5 {[%emt 0:00:02]} a6 {[%emt 0:00:05]} 7. Qd2 {[%emt 0:00:01]} e5 {[%emt 0:00:10]} 8. dxe5 {[%emt 0:00:08]} dxe5 {[%emt 0:00:02]} 9. Qxd8 {[%emt 0:00:03]} Rxd8 {[%emt 0:00:01]} 10. Nd5 {[%emt 0:00:01]} Nbd7 {[%emt 0:00:37]} 11. Nxc7 Rb8 12. Nd5 {[%emt 0:00:05]} Re8 {[%emt 0:00:16]} 13. O-O-O {[%emt 0:00:14]} Nxd5 {[%emt 0:00:02]} 14. Rxd5 {[%emt 0:00:14]} Nb6 {[%emt 0:00:12]} 15. Rd8 {[%emt 0:00:04]} Rxd8 {[%emt 0:00:01]} 16. Bxd8 {[%emt 0:00:02]} Nd7 {[%emt 0:00:07]} 17. Bc7 {[%emt 0:00:05]} Ra8 {[%emt 0:00:02]} 18. Ne2 {[%emt 0:00:05]} Nc5 {[%emt 0:00:16]} 19. Nc3 {[%emt 0:00:04]} Be6 {[%emt 0:00:06]} *

[Event "3rd FIDE WCCC Blitz G08 2019"]
[Site "Minsk"]
[Date "2019.08.18"]
[Round "3.3"]
[White "Mutina, Evdokia"]
[Black "Lyapina, Mariya"]
[Result "*"]
[ECO "B20"]
[WhiteElo "1001"]
[BlackElo "1349"]
[Annotator "NA"]
[PlyCount "47"]
[EventDate "2019.08.18"]
[EventType "swiss"]
[EventCountry "BLR"]
[SourceTitle "playchess.com"]
[Source "ChessBase"]
[SourceQuality "1"]
[TimeControl "300+2"]

1. e4 {[%emt 0:00:00]} c5 {[%emt 0:00:00]} 2. c4 {[%emt 0:00:00]} d6 {[%emt 0:00:01]} 3. Nc3 {[%emt 0:00:01]} Nc6 {[%emt 0:00:01]} 4. Nf3 {[%emt 0:00:00]} Nf6 {[%emt 0:00:02]} 5. d4 {[%emt 0:00:02]} cxd4 {[%emt 0:00:02]} 6. Nxd4 {[%emt 0:00:02]} g6 {[%emt 0:00:01]} 7. Be2 {[%emt 0:00:04]} Bg7 {[%emt 0:00:01]} 8. Nxc6 {[%emt 0:00:02]} bxc6 {[%emt 0:00:01]} 9. O-O {[%emt 0:00:01]} O-O {[%emt 0:00:03]} 10. Bg5 h6 {[%emt 0:00:04]} 11. Bxf6 {[%emt 0:00:03]} Bxf6 {[%emt 0:00:02]} 12. Rc1 {[%emt 0:00:02]} Qb6 {[%emt 0:00:07]} 13. b3 {[%emt 0:00:02]} Qd4 {[%emt 0:00:10]} 14. Qxd4 {[%emt 0:00:04]} Bxd4 {[%emt 0:00:02]} 15. Rfd1 {[%emt 0:00:03]} Bg7 {[%emt 0:00:02]} 16. Bf3 {[%emt 0:00:04]} Rb8 {[%emt 0:00:04]} 17. Ne2 {[%emt 0:00:06]} a5 {[%emt 0:00:10]} 18. Ng3 {[%emt 0:00:09]} Be6 {[%emt 0:00:09]} 19. e5 {[%emt 0:00:10]} Bxe5 {[%emt 0:00:03]} 20. Bxc6 {[%emt 0:00:03]} Bf4 {[%emt 0:00:09]} 21. Rc3 {[%emt 0:00:09]} Bg4 {[%emt 0:00:07]} 22. Rdd3 Rfc8 23. Bb5 {[%emt 0:00:30]} e5 {[%emt 0:00:16]} 24. Ba4 {[%emt 0:00:13]} *

[Event "3rd FIDE WCCC Blitz G08 2019"]
[Site "Minsk"]
[Date "2019.08.18"]
[Round "3.4"]
[White "Preobrazhenskaya, Diana"]
[Black "Izafatava, Kira"]
[Result "*"]
[ECO "B01"]
[WhiteElo "1361"]
[BlackElo "1144"]
[Annotator "NA"]
[PlyCount "25"]
[EventDate "2019.08.18"]
[EventType "swiss"]
[EventCountry "BLR"]
[SourceTitle "playchess.com"]
[Source "ChessBase"]
[SourceQuality "1"]
[TimeControl "300+2"]

1. e4 {[%emt 0:00:00]} d5 {[%emt 0:00:00]} 2. exd5 {[%emt 0:00:01]} Qxd5 3. Nc3 {[%emt 0:00:01]} Qd6 {[%emt 0:00:00]} 4. Nf3 {[%emt 0:00:04]} Nf6 {[%emt 0:00:01]} 5. d4 {[%emt 0:00:03]} a6 {[%emt 0:00:01]} 6. Bd3 {[%emt 0:00:14]} Nc6 {[%emt 0:00:03]} 7. O-O {[%emt 0:00:06]} Bg4 {[%emt 0:00:04]} 8. Be3 {[%emt 0:00:14]} O-O-O {[%emt 0:00:02]} 9. Ne4 {[%emt 0:01:04]} Nxe4 {[%emt 0:00:08]} 10. Bxe4 {[%emt 0:00:03]} e6 {[%emt 0:00:22]} 11. h3 {[%emt 0:00:12]} Bh5 {[%emt 0:00:05]} 12. c4 {[%emt 0:00:26]} f5 {[%emt 0:00:08]} 13. Bxc6 {[%emt 0:00:07]} *

[Event "3rd FIDE WCCC Blitz G08 2019"]
[Site "Minsk"]
[Date "2019.08.18"]
[Round "3.6"]
[White "Phan, Nguyen Mai Chi"]
[Black "Lajdamik, Kinga"]
[Result "*"]
[ECO "D06"]
[WhiteElo "2139"]
[BlackElo "1145"]
[Annotator "NA"]
[PlyCount "24"]
[EventDate "2019.08.18"]
[EventType "swiss"]
[EventCountry "BLR"]
[SourceTitle "playchess.com"]
[Source "ChessBase"]
[SourceQuality "1"]
[TimeControl "300+2"]

1. d4 {[%emt 0:00:00]} d5 {[%emt 0:00:00]} 2. c4 {[%emt 0:00:00]} Bf5 {[%emt 0:00:00]} 3. Nc3 {[%emt 0:00:10]} Nf6 {[%emt 0:00:02]} 4. Qb3 {[%emt 0:00:04]} dxc4 {[%emt 0:00:06]} 5. Qxb7 {[%emt 0:00:06]} Nbd7 {[%emt 0:00:01]} 6. Qa6 {[%emt 0:00:08]} e6 {[%emt 0:00:19]} 7. Qxc4 {[%emt 0:00:05]} Be7 {[%emt 0:00:02]} 8. Bf4 {[%emt 0:00:06]} Rc8 {[%emt 0:00:48]} 9. e3 {[%emt 0:00:09]} O-O {[%emt 0:00:05]} 10. Bd3 {[%emt 0:00:04]} Nb6 {[%emt 0:00:03]} 11. Qb5 {[%emt 0:00:06]} c6 {[%emt 0:00:43]} 12. Qa6 {[%emt 0:00:05]} Bxd3 {[%emt 0:00:15]} *

[Event "3rd FIDE WCCC Blitz G08 2019"]
[Site "Minsk"]
[Date "2019.08.18"]
[Round "4.1"]
[White "Mutina, Evdokia"]
[Black "Preobrazhenskaya, Diana"]
[Result "0-1"]
[ECO "A01"]
[WhiteElo "1001"]
[BlackElo "1361"]
[Annotator "NA"]
[PlyCount "50"]
[EventDate "2019.08.18"]
[EventType "swiss"]
[EventCountry "BLR"]
[SourceTitle "playchess.com"]
[Source "ChessBase"]
[SourceQuality "1"]
[TimeControl "300+2"]

1. b3 {[%emt 0:00:00]} Nf6 {[%emt 0:00:05]} 2. Bb2 {[%emt 0:00:01]} c5 {[%emt 0:00:04]} 3. e3 {[%emt 0:00:03]} d5 {[%emt 0:00:05]} 4. Bb5+ {[%emt 0:00:02]} Nc6 {[%emt 0:00:04]} 5. Bxc6+ {[%emt 0:00:02]} bxc6 {[%emt 0:00:01]} 6. f4 {[%emt 0:00:01]} g6 {[%emt 0:00:05]} 7. Nf3 {[%emt 0:00:01]} Bg7 {[%emt 0:00:02]} 8. Ne5 {[%emt 0:00:02]} Qc7 {[%emt 0:00:13]} 9. d3 {[%emt 0:00:01]} O-O {[%emt 0:00:05]} 10. Nd2 {[%emt 0:00:03]} Bf5 {[%emt 0:00:17]} 11. Ndf3 {[%emt 0:00:08]} Ng4 {[%emt 0:00:39]} 12. O-O {[%emt 0:00:10]} Nxe3 {[%emt 0:00:13]} 13. Qe2 {[%emt 0:00:25]} Nxf1 {[%emt 0:00:06]} 14. Qxf1 {[%emt 0:00:02]} f6 {[%emt 0:00:05]} 15. g4 {[%emt 0:00:23]} Bc8 {[%emt 0:00:06]} 16. Ba3 {[%emt 0:00:14]} fxe5 {[%emt 0:00:03]} 17. Bxc5 {[%emt 0:00:03]} Rxf4 {[%emt 0:00:05]} 18. Re1 {[%emt 0:00:15]} Bxg4 {[%emt 0:00:06]} 19. Re3 {[%emt 0:00:10]} Raf8 {[%emt 0:00:13]} 20. Kg2 {[%emt 0:00:04]} Bxf3+ {[%emt 0:00:04]} 21. Rxf3 {[%emt 0:00:02]} Rxf3 {[%emt 0:00:01]} 22. Qe2 {[%emt 0:00:10]} Qd7 {[%emt 0:00:04]} 23. h3 {[%emt 0:00:02]} Qxh3+ {[%emt 0:00:03]} 24. Kg1 {[%emt 0:00:06]} Rf1+ {[%emt 0:00:04]} 25. Qxf1 {[%emt 0:00:06]} Rxf1# {[%emt 0:00:03]} 0-1

[Event "3rd FIDE WCCC Blitz G08 2019"]
[Site "Minsk"]
[Date "2019.08.18"]
[Round "4.2"]
[White "Trishkina, Evgeniya"]
[Black "Skamaroshchanka, Daryia"]
[Result "1-0"]
[ECO "B06"]
[WhiteElo "1328"]
[BlackElo "1034"]
[Annotator "NA"]
[PlyCount "109"]
[EventDate "2019.08.18"]
[EventType "swiss"]
[EventCountry "BLR"]
[SourceTitle "playchess.com"]
[Source "ChessBase"]
[SourceQuality "1"]
[TimeControl "300+2"]

1. e4 {[%emt 0:00:00]} g6 {[%emt 0:00:00]} 2. d4 {[%emt 0:00:00]} Bg7 {[%emt 0:00:02]} 3. Nf3 {[%emt 0:00:02]} b6 {[%emt 0:00:00]} 4. Nc3 {[%emt 0:00:01]} Bb7 {[%emt 0:00:01]} 5. Bc4 {[%emt 0:00:02]} e6 {[%emt 0:00:02]} 6. Bf4 {[%emt 0:00:02]} Ne7 {[%emt 0:00:02]} 7. O-O {[%emt 0:00:03]} d6 {[%emt 0:00:01]} 8. Re1 {[%emt 0:00:01]} O-O {[%emt 0:00:03]} 9. h3 {[%emt 0:00:01]} Nd7 {[%emt 0:00:01]} 10. Qd2 {[%emt 0:00:05]} d5 {[%emt 0:00:18]} 11. exd5 {[%emt 0:00:06]} Nxd5 {[%emt 0:00:03]} 12. Nxd5 {[%emt 0:00:08]} exd5 {[%emt 0:00:05]} 13. Bb3 {[%emt 0:00:02]} c5 {[%emt 0:00:10]} 14. dxc5 {[%emt 0:00:04]} Nxc5 {[%emt 0:00:01]} 15. c3 {[%emt 0:00:22]} Nxb3 {[%emt 0:00:03]} 16. axb3 {[%emt 0:00:01]} f5 {[%emt 0:00:42]} 17. Bg5 {[%emt 0:00:06]} Qd6 {[%emt 0:00:34]} 18. Be7 {[%emt 0:00:04]} Qd7 {[%emt 0:00:09]} 19. Bxf8 {[%emt 0:00:02]} Rxf8 {[%emt 0:00:02]} 20. c4 {[%emt 0:00:05]} Rd8 {[%emt 0:00:07]} 21. Rxa7 {[%emt 0:00:05]} dxc4 {[%emt 0:00:05]} 22. Qxd7 {[%emt 0:00:01]} Rxd7 {[%emt 0:00:02]} 23. Re8+ {[%emt 0:00:05]} Kf7 {[%emt 0:00:09]} 24. Rb8 {[%emt 0:00:02]} Bc6 {[%emt 0:00:12]} 25. Rxd7+ {[%emt 0:00:03]} Bxd7 {[%emt 0:00:01]} 26. Rxb6 {[%emt 0:00:06]} Bxb2 {[%emt 0:00:04]} 27. bxc4 {[%emt 0:00:02]} Bg7 {[%emt 0:00:06]} 28. Rb7 {[%emt 0:00:04]} Ke6 {[%emt 0:00:03]} 29. Kf1 {[%emt 0:00:02]} Kd6 {[%emt 0:00:03]} 30. Ke2 {[%emt 0:00:07]} Bf6 {[%emt 0:00:08]} 31. Rb6+ {[%emt 0:00:06]} Ke7 {[%emt 0:00:06]} 32. Kd3 {[%emt 0:00:01]} g5 {[%emt 0:00:29]} 33. Nd4 {[%emt 0:00:08]} f4 {[%emt 0:00:17]} 34. Nc6+ {[%emt 0:00:07]} Kf7 {[%emt 0:00:10]} 35. Rb7 {[%emt 0:00:06]} Ke6 {[%emt 0:00:03]} 36. Nd4+ {[%emt 0:00:03]} Kd6 {[%emt 0:00:09]} 37. c5+ {[%emt 0:00:03]} Kxc5 {[%emt 0:00:26]} 38. Rxd7 {[%emt 0:00:03]} Bxd4 39. Rxd4 {[%emt 0:00:02]} h5 {[%emt 0:00:09]} 40. f3 {[%emt 0:00:05]} Kc6 {[%emt 0:00:05]} 41. Rd8 {[%emt 0:00:04]} Kc5 {[%emt 0:00:05]} 42. Rg8 {[%emt 0:00:02]} g4 {[%emt 0:00:04]} 43. hxg4 {[%emt 0:00:01]} hxg4 {[%emt 0:00:01]} 44. Rxg4 {[%emt 0:00:01]} Kd5 {[%emt 0:00:03]} 45. Rxf4 {[%emt 0:00:02]} Ke5 {[%emt 0:00:01]} 46. Ke3 {[%emt 0:00:04]} Ke6 {[%emt 0:00:02]} 47. g4 {[%emt 0:00:03]} Ke5 {[%emt 0:00:01]} 48. g5 {[%emt 0:00:02]} Ke6 {[%emt 0:00:01]} 49. g6 {[%emt 0:00:02]} Ke7 {[%emt 0:00:04]} 50. g7 {[%emt 0:00:02]} Ke6 {[%emt 0:00:01]} 51. g8=Q+ {[%emt 0:00:02]} Kd6 {[%emt 0:00:03]} 52. Qg5 {[%emt 0:00:05]} Ke6 {[%emt 0:00:03]} 53. Rf6+ {[%emt 0:00:01]} Kd7 {[%emt 0:00:01]} 54. Qg7+ {[%emt 0:00:01]} Ke8 {[%emt 0:00:11]} 55. Rf8# {[%emt 0:00:01]} 1-0

[Event "3rd FIDE WCCC Blitz G08 2019"]
[Site "Minsk"]
[Date "2019.08.18"]
[Round "4.3"]
[White "Asachenko, Ksenia"]
[Black "Phan, Nguyen Mai Chi"]
[Result "0-1"]
[ECO "B76"]
[WhiteElo "1169"]
[BlackElo "2139"]
[Annotator "NA"]
[PlyCount "134"]
[EventDate "2019.08.18"]
[EventType "swiss"]
[EventCountry "BLR"]
[SourceTitle "playchess.com"]
[Source "ChessBase"]
[SourceQuality "1"]
[TimeControl "300+2"]

1. e4 {[%emt 0:00:00]} c5 {[%emt 0:00:00]} 2. Nf3 {[%emt 0:00:02]} d6 {[%emt 0:00:00]} 3. d4 {[%emt 0:00:01]} cxd4 {[%emt 0:00:00]} 4. Nxd4 {[%emt 0:00:02]} Nf6 {[%emt 0:00:02]} 5. Nc3 {[%emt 0:00:02]} g6 {[%emt 0:00:01]} 6. Be3 {[%emt 0:00:03]} Bg7 {[%emt 0:00:02]} 7. f3 {[%emt 0:00:02]} O-O {[%emt 0:00:02]} 8. g4 {[%emt 0:00:04]} Nc6 {[%emt 0:00:01]} 9. Qd2 {[%emt 0:00:03]} Re8 {[%emt 0:00:02]} 10. O-O-O {[%emt 0:00:08]} Nxd4 {[%emt 0:00:04]} 11. Bxd4 {[%emt 0:00:06]} Be6 {[%emt 0:00:01]} 12. h4 {[%emt 0:00:10]} Qa5 {[%emt 0:00:02]} 13. a3 {[%emt 0:00:24]} Red8 {[%emt 0:00:03]} 14. Be3 {[%emt 0:01:14]} h5 {[%emt 0:00:08]} 15. gxh5 {[%emt 0:00:12]} Nxh5 {[%emt 0:00:02]} 16. Ne2 {[%emt 0:00:47]} Qxd2+ {[%emt 0:00:06]} 17. Rxd2 {[%emt 0:00:02]} b5 {[%emt 0:00:19]} 18. Bh3 {[%emt 0:00:13]} Bxh3 {[%emt 0:00:06]} 19. Rxh3 {[%emt 0:00:02]} a5 {[%emt 0:00:06]} 20. Bd4 {[%emt 0:00:29]} b4 {[%emt 0:00:07]} 21. a4 {[%emt 0:00:22]} Rdc8 {[%emt 0:00:06]} 22. Bxg7 Kxg7 23. Kb1 {[%emt 0:00:19]} Rab8 {[%emt 0:00:26]} 24. b3 {[%emt 0:00:05]} Rc5 {[%emt 0:00:06]} 25. Nd4 {[%emt 0:00:05]} Nf6 {[%emt 0:00:10]} 26. Nb5 {[%emt 0:00:05]} Ne8 {[%emt 0:00:10]} 27. Rd5 {[%emt 0:00:09]} Rxd5 {[%emt 0:00:03]} 28. exd5 {[%emt 0:00:02]} Nf6 {[%emt 0:00:03]} 29. Nc7 {[%emt 0:00:15]} Rb7 {[%emt 0:00:01]} 30. Nb5 {[%emt 0:00:04]} Nxd5 {[%emt 0:00:03]} 31. h5 {[%emt 0:00:04]} Nf4 {[%emt 0:00:02]} 32. h6+ {[%emt 0:00:05]} Kh7 {[%emt 0:00:04]} 33. Rh4 {[%emt 0:00:02]} Nd5 {[%emt 0:00:05]} 34. Kb2 {[%emt 0:00:06]} Nf6 {[%emt 0:00:01]} 35. Nd4 {[%emt 0:00:05]} Ng8 {[%emt 0:00:04]} 36. f4 {[%emt 0:00:08]} Nxh6 {[%emt 0:00:08]} 37. Ne2 {[%emt 0:00:03]} Kg7 {[%emt 0:00:01]} 38. Ng3 {[%emt 0:00:02]} d5 {[%emt 0:00:03]} 39. Ne2 {[%emt 0:00:03]} Nf5 {[%emt 0:00:07]} 40. Rh2 {[%emt 0:00:02]} e6 {[%emt 0:00:02]} 41. Rg2 {[%emt 0:00:04]} Rc7 {[%emt 0:00:04]} 42. Ng3 {[%emt 0:00:02]} Nxg3 {[%emt 0:00:03]} 43. Rxg3 {[%emt 0:00:02]} Kf6 {[%emt 0:00:01]} 44. Rf3 {[%emt 0:00:02]} Kf5 {[%emt 0:00:01]} 45. Rf2 {[%emt 0:00:02]} Rc8 {[%emt 0:00:04]} 46. Rf1 {[%emt 0:00:01]} Rh8 {[%emt 0:00:01]} 47. Rf2 {[%emt 0:00:02]} Rh4 {[%emt 0:00:01]} 48. c3 {[%emt 0:00:01]} bxc3+ {[%emt 0:00:01]} 49. Kxc3 {[%emt 0:00:02]} Rxf4 {[%emt 0:00:01]} 50. Re2 {[%emt 0:00:02]} Rb4 {[%emt 0:00:05]} 51. Rf2+ {[%emt 0:00:02]} Rf4 {[%emt 0:00:04]} 52. Re2 {[%emt 0:00:02]} g5 {[%emt 0:00:02]} 53. Kd3 {[%emt 0:00:04]} g4 {[%emt 0:00:02]} 54. Rg2 {[%emt 0:00:02]} Rf3+ {[%emt 0:00:01]} 55. Kc2 {[%emt 0:00:01]} Kf4 {[%emt 0:00:01]} 56. Kd2 {[%emt 0:00:02]} g3 {[%emt 0:00:02]} 57. Ke2 {[%emt 0:00:02]} Rxb3 {[%emt 0:00:01]} 58. Kf1 {[%emt 0:00:02]} Rb1+ {[%emt 0:00:03]} 59. Ke2 {[%emt 0:00:02]} Rb2+ {[%emt 0:00:01]} 60. Kf1 {[%emt 0:00:01]} Rxg2 {[%emt 0:00:03]} 61. Kxg2 {[%emt 0:00:02]} d4 {[%emt 0:00:01]} 62. Kf1 {[%emt 0:00:03]} Kf3 {[%emt 0:00:01]} 63. Kg1 {[%emt 0:00:05]} g2 {[%emt 0:00:04]} 64. Kh2 {[%emt 0:00:03]} Kf2 {[%emt 0:00:01]} 65. Kh3 {[%emt 0:00:01]} g1=Q {[%emt 0:00:03]} 66. Kh4 {[%emt 0:00:02]} f6 {[%emt 0:00:03]} 67. Kh5 {[%emt 0:00:02]} Qg5# {[%emt 0:00:01]} 0-1

[Event "3rd FIDE WCCC Blitz G08 2019"]
[Site "Minsk"]
[Date "2019.08.18"]
[Round "4.4"]
[White "Frolova, Umila"]
[Black "Gerasimova, Maria V."]
[Result "1-0"]
[ECO "C55"]
[WhiteElo "1252"]
[BlackElo "1076"]
[Annotator "NA"]
[PlyCount "122"]
[EventDate "2019.08.18"]
[EventType "swiss"]
[EventCountry "BLR"]
[SourceTitle "playchess.com"]
[Source "ChessBase"]
[SourceQuality "1"]
[TimeControl "300+2"]

1. e4 {[%emt 0:00:00]} e5 {[%emt 0:00:00]} 2. Bc4 {[%emt 0:00:00]} Nc6 {[%emt 0:00:00]} 3. Nf3 {[%emt 0:00:01]} Nf6 4. d4 exd4 {[%emt 0:00:05]} 5. O-O {[%emt 0:00:02]} Bc5 {[%emt 0:00:03]} 6. e5 {[%emt 0:00:01]} d5 {[%emt 0:00:06]} 7. exf6 {[%emt 0:00:01]} dxc4 {[%emt 0:00:01]} 8. Re1+ {[%emt 0:00:02]} Be6 {[%emt 0:00:01]} 9. Ng5 {[%emt 0:00:01]} Qxf6 {[%emt 0:00:13]} 10. Nxe6 {[%emt 0:00:02]} fxe6 {[%emt 0:00:01]} 11. Qh5+ {[%emt 0:00:01]} Qf7 {[%emt 0:00:05]} 12. Qxc5 {[%emt 0:00:02]} O-O-O 13. Qxc4 {[%emt 0:00:15]} Rhf8 {[%emt 0:00:18]} 14. Qe2 {[%emt 0:00:07]} e5 {[%emt 0:00:10]} 15. Bg5 {[%emt 0:00:07]} Rd7 {[%emt 0:00:10]} 16. Nd2 {[%emt 0:00:07]} h6 {[%emt 0:00:08]} 17. Bh4 {[%emt 0:00:02]} g5 {[%emt 0:00:01]} 18. Bg3 {[%emt 0:00:00]} h5 {[%emt 0:00:11]} 19. h3 {[%emt 0:00:06]} h4 {[%emt 0:00:01]} 20. Bh2 {[%emt 0:00:01]} Qf5 {[%emt 0:00:09]} 21. Ne4 {[%emt 0:00:27]} Rdf7 {[%emt 0:00:08]} 22. Qg4 {[%emt 0:00:13]} Qxg4 23. hxg4 {[%emt 0:00:01]} Rd7 {[%emt 0:00:18]} 24. Nxg5 {[%emt 0:00:23]} d3 {[%emt 0:00:14]} 25. cxd3 {[%emt 0:00:08]} Rxd3 {[%emt 0:00:01]} 26. Rad1 {[%emt 0:00:03]} Rxd1 {[%emt 0:00:12]} 27. Rxd1 {[%emt 0:00:01]} Rd8 {[%emt 0:00:06]} 28. Rxd8+ {[%emt 0:00:02]} Kxd8 {[%emt 0:00:01]} 29. Kf1 {[%emt 0:00:01]} Ke7 {[%emt 0:00:02]} 30. Ke2 {[%emt 0:00:02]} Kf6 {[%emt 0:00:01]} 31. Nf3 {[%emt 0:00:02]} e4 {[%emt 0:00:07]} 32. Nxh4 {[%emt 0:00:03]} Kg5 {[%emt 0:00:01]} 33. Nf5 {[%emt 0:00:02]} Kxg4 {[%emt 0:00:05]} 34. Ne3+ {[%emt 0:00:03]} Kg5 {[%emt 0:00:02]} 35. f3 {[%emt 0:00:02]} Nd4+ {[%emt 0:00:04]} 36. Kf2 {[%emt 0:00:04]} exf3 37. gxf3 {[%emt 0:00:01]} Ne6 {[%emt 0:00:13]} 38. Nd5 {[%emt 0:00:10]} c6 {[%emt 0:00:01]} 39. Nc3 {[%emt 0:00:06]} Nc5 {[%emt 0:00:05]} 40. f4+ {[%emt 0:00:01]} Kf5 {[%emt 0:00:02]} 41. Ke3 {[%emt 0:00:03]} Ne6 {[%emt 0:00:14]} 42. Bg3 {[%emt 0:00:02]} Ng7 {[%emt 0:00:06]} 43. Ne4 {[%emt 0:00:08]} Nh5 {[%emt 0:00:02]} 44. Bh2 {[%emt 0:00:03]} b6 {[%emt 0:00:02]} 45. Ng3+ {[%emt 0:00:04]} Nxg3 {[%emt 0:00:02]} 46. Bxg3 {[%emt 0:00:02]} c5 {[%emt 0:00:01]} 47. b3 {[%emt 0:00:01]} Kf6 {[%emt 0:00:03]} 48. Ke4 {[%emt 0:00:01]} Ke6 {[%emt 0:00:01]} 49. f5+ {[%emt 0:00:01]} Kf6 {[%emt 0:00:01]} 50. Bh4+ {[%emt 0:00:02]} Kf7 {[%emt 0:00:02]} 51. f6 {[%emt 0:00:01]} Kg8 {[%emt 0:00:03]} 52. Kd5 {[%emt 0:00:00]} Kf8 {[%emt 0:00:02]} 53. Kc6 {[%emt 0:00:00]} a6 {[%emt 0:00:01]} 54. Kxb6 {[%emt 0:00:02]} a5 55. Kxa5 {[%emt 0:00:03]} Kf7 {[%emt 0:00:03]} 56. Kb5 {[%emt 0:00:02]} c4 {[%emt 0:00:01]} 57. Kxc4 {[%emt 0:00:01]} Kf8 {[%emt 0:00:01]} 58. a4 {[%emt 0:00:01]} Kf7 59. b4 Kf8 {[%emt 0:00:02]} 60. a5 {[%emt 0:00:01]} Kf7 {[%emt 0:00:00]} 61. b5 {[%emt 0:00:00]} Kg6 {[%emt 0:00:00]} 1-0